[Event "Early-Titled-Tuesday-Blitz-December-26-2023"]
[Site "Chess.com"]
[Date "2023.12.26"]
[Round "1"]
[White "Nitzan_Steinberg"]
[Black "AjedrezInteligente"]
[Result "1-0"]
[WhiteElo "2863"]
[BlackElo "2506"]
[TimeControl "180+1"]
[EndTime "8:04:17 PST"]
[Termination "Nitzan_Steinberg won by resignation"]

1. e4 {[%clk 0:03:00.9]} 1... c5 {[%clk 0:02:58.5]} 2. Nf3 {[%clk 0:03:01.2]}
2... e6 {[%clk 0:02:56]} 3. d4 {[%clk 0:03:01.5]} 3... cxd4 {[%clk 0:02:56.9]}
4. Nxd4 {[%clk 0:03:02.1]} 4... Nf6 {[%clk 0:02:57.4]} 5. Nc3 {[%clk 0:03:02.1]}
5... Nc6 {[%clk 0:02:58.1]} 6. a3 {[%clk 0:02:59.2]} 6... d5 {[%clk 0:02:54.4]}
7. Bb5 {[%clk 0:02:57]} 7... Bd7 {[%clk 0:02:52.7]} 8. exd5 {[%clk 0:02:57.2]}
8... exd5 {[%clk 0:02:49.1]} 9. O-O {[%clk 0:02:57.3]} 9... Be7 {[%clk
0:02:47.7]} 10. h3 {[%clk 0:02:54.8]} 10... O-O {[%clk 0:02:48.1]} 11. Be3
{[%clk 0:02:54.5]} 11... a6 {[%clk 0:02:47]} 12. Be2 {[%clk 0:02:52.9]} 12...
Bd6 {[%clk 0:02:43.8]} 13. Bf3 {[%clk 0:02:47.3]} 13... Be6 {[%clk 0:02:38.6]}
14. Re1 {[%clk 0:02:46.1]} 14... Re8 {[%clk 0:02:37.6]} 15. Qd2 {[%clk
0:02:45.9]} 15... Ne5 {[%clk 0:02:35.4]} 16. Be2 {[%clk 0:02:44.3]} 16... Nc4
{[%clk 0:02:34.9]} 17. Bxc4 {[%clk 0:02:44.1]} 17... dxc4 {[%clk 0:02:35.3]} 18.
Rad1 {[%clk 0:02:33]} 18... Be5 {[%clk 0:02:24.8]} 19. f4 {[%clk 0:02:15]} 19...
Bc7 {[%clk 0:02:02.5]} 20. Qf2 {[%clk 0:02:14.8]} 20... Qb8 {[%clk 0:01:41]} 21.
Qf3 {[%clk 0:01:56]} 21... b5 {[%clk 0:01:22.5]} 22. g4 {[%clk 0:01:50.1]} 22...
Bb6 {[%clk 0:01:22]} 23. g5 {[%clk 0:01:45.4]} 23... Bxd4 {[%clk 0:01:19.5]} 24.
Bxd4 {[%clk 0:01:43.6]} 24... Nd7 {[%clk 0:01:13.8]} 25. f5 {[%clk 0:01:41.7]}
25... Bxf5 {[%clk 0:01:13.9]} 26. Rxe8+ {[%clk 0:01:41.1]} 26... Qxe8 {[%clk
0:01:12.9]} 27. Qxf5 {[%clk 0:01:42]} 1-0

[Event "Early-Titled-Tuesday-Blitz-December-26-2023"]
[Site "Chess.com"]
[Date "2023.12.26"]
[Round "1"]
[White "le-castor-faineant"]
[Black "Sanyura"]
[Result "0-1"]
[WhiteElo "2276"]
[BlackElo "2618"]
[TimeControl "180+1"]
[EndTime "8:04:27 PST"]
[Termination "Sanyura won by resignation"]

1. e4 {[%clk 0:02:57.8]} 1... c5 {[%clk 0:02:59.7]} 2. Nf3 {[%clk 0:02:55.1]}
2... e6 {[%clk 0:02:59.4]} 3. d4 {[%clk 0:02:52.3]} 3... cxd4 {[%clk 0:03:00.3]}
4. Nxd4 {[%clk 0:02:52.9]} 4... Nf6 {[%clk 0:03:00.2]} 5. Bd3 {[%clk 0:02:52]}
5... Nc6 {[%clk 0:02:59.9]} 6. Nb3 {[%clk 0:02:50.9]} 6... d5 {[%clk 0:02:59.9]}
7. exd5 {[%clk 0:02:50.8]} 7... exd5 {[%clk 0:03:00.8]} 8. O-O {[%clk 0:02:51]}
8... h6 {[%clk 0:02:59.3]} 9. Re1+ {[%clk 0:02:49.5]} 9... Be7 {[%clk
0:02:59.8]} 10. Nc3 {[%clk 0:02:49.3]} 10... O-O {[%clk 0:02:59.7]} 11. h3
{[%clk 0:02:48.1]} 11... Bd6 {[%clk 0:02:50.4]} 12. Be3 {[%clk 0:02:39.7]} 12...
Re8 {[%clk 0:02:13.9]} 13. Nd4 {[%clk 0:02:36.6]} 13... Qe7 {[%clk 0:01:50.5]}
14. Qd2 {[%clk 0:02:05.5]} 14... Be6 {[%clk 0:01:37.9]} 15. Nf5 {[%clk
0:01:49.2]} 15... Bxf5 {[%clk 0:01:35.8]} 16. Bxf5 {[%clk 0:01:50.1]} 16... Qe5
{[%clk 0:01:35.9]} 17. Bg4 {[%clk 0:01:34.3]} 17... Qh2+ {[%clk 0:01:31.6]} 18.
Kf1 {[%clk 0:01:32.7]} 18... d4 {[%clk 0:01:32.3]} 19. f3 {[%clk 0:01:03.7]}
19... dxe3 {[%clk 0:01:29.5]} 20. Rxe3 {[%clk 0:01:01.6]} 0-1

[Event "Early-Titled-Tuesday-Blitz-December-26-2023"]
[Site "Chess.com"]
[Date "2023.12.26"]
[Round "1"]
[White "DishonorOnYourCow"]
[Black "stollenmonster"]
[Result "0-1"]
[WhiteElo "2517"]
[BlackElo "2920"]
[TimeControl "180+1"]
[EndTime "8:04:34 PST"]
[Termination "stollenmonster won by resignation"]

1. d4 {[%clk 0:03:00.9]} 1... Nf6 {[%clk 0:02:59.6]} 2. c4 {[%clk 0:03:00.9]}
2... e6 {[%clk 0:03:00]} 3. Nf3 {[%clk 0:03:00.9]} 3... d5 {[%clk 0:03:00.9]} 4.
Nc3 {[%clk 0:03:00.6]} 4... Ne4 {[%clk 0:03:00.7]} 5. e3 {[%clk 0:02:51.4]} 5...
f5 {[%clk 0:03:00.5]} 6. Bd3 {[%clk 0:02:51.2]} 6... Be7 {[%clk 0:02:58.9]} 7.
O-O {[%clk 0:02:51]} 7... c6 {[%clk 0:02:59]} 8. Ne5 {[%clk 0:02:50.9]} 8... O-O
{[%clk 0:02:59.3]} 9. f3 {[%clk 0:02:50.8]} 9... Nxc3 {[%clk 0:02:59.4]} 10.
bxc3 {[%clk 0:02:50.9]} 10... Nd7 {[%clk 0:03:00.1]} 11. Nxd7 {[%clk 0:02:49.9]}
11... Bxd7 {[%clk 0:03:01]} 12. cxd5 {[%clk 0:02:50.3]} 12... cxd5 {[%clk
0:02:49.4]} 13. Bd2 {[%clk 0:02:50.8]} 13... Bd6 {[%clk 0:02:48.9]} 14. Qe2
{[%clk 0:02:44.6]} 14... Bc6 {[%clk 0:02:29.6]} 15. c4 {[%clk 0:02:42.8]} 15...
Qh4 {[%clk 0:02:22.4]} 16. g3 {[%clk 0:02:39.6]} 16... Qh5 {[%clk 0:02:22.1]}
17. cxd5 {[%clk 0:02:35.6]} 17... exd5 {[%clk 0:02:21.6]} 18. Qg2 {[%clk
0:02:21]} 18... Rae8 {[%clk 0:02:16]} 19. Bxf5 {[%clk 0:02:01.3]} 19... Qxf5
{[%clk 0:02:14.2]} 20. g4 {[%clk 0:01:59.6]} 20... Qd3 {[%clk 0:02:14]} 21. Rad1
{[%clk 0:01:58.7]} 21... Qc2 {[%clk 0:02:06.3]} 22. h4 {[%clk 0:01:56.5]} 22...
Qxa2 {[%clk 0:02:02]} 23. g5 {[%clk 0:01:55.8]} 23... Qc2 {[%clk 0:02:00.8]} 24.
f4 {[%clk 0:01:55.6]} 24... Qf5 {[%clk 0:01:58.1]} 25. h5 {[%clk 0:01:55.1]}
25... Re6 {[%clk 0:01:56.6]} 26. Qg3 {[%clk 0:01:53.9]} 26... Bb5 {[%clk
0:01:53.9]} 27. Rf2 {[%clk 0:01:51.5]} 27... Rc8 {[%clk 0:01:53.1]} 28. Rg2
{[%clk 0:01:50.7]} 28... Rc2 {[%clk 0:01:50.1]} 29. g6 {[%clk 0:01:50.5]} 29...
hxg6 {[%clk 0:01:50.4]} 30. hxg6 {[%clk 0:01:50.4]} 30... Be8 {[%clk 0:01:50.9]}
31. Qh4 {[%clk 0:01:31.5]} 31... Rxg6 {[%clk 0:01:49.4]} 32. Qd8 {[%clk
0:01:28.9]} 32... Rxg2+ {[%clk 0:01:49]} 33. Kxg2 {[%clk 0:01:29.3]} 33... Qg6+
{[%clk 0:01:45.2]} 34. Kh2 {[%clk 0:01:28.9]} 34... Bb4 {[%clk 0:01:38.8]} 35.
Qxd5+ {[%clk 0:01:27]} 35... Bf7 {[%clk 0:01:39.2]} 36. Qd8+ {[%clk 0:01:26.3]}
36... Kh7 {[%clk 0:01:39.5]} 0-1

[Event "Early-Titled-Tuesday-Blitz-December-26-2023"]
[Site "Chess.com"]
[Date "2023.12.26"]
[Round "1"]
[White "bubeliang"]
[Black "Schattman"]
[Result "1-0"]
[WhiteElo "2781"]
[BlackElo "2458"]
[TimeControl "180+1"]
[EndTime "8:04:36 PST"]
[Termination "bubeliang won on time"]

1. e4 {[%clk 0:03:00.9]} 1... c5 {[%clk 0:02:59.4]} 2. c3 {[%clk 0:03:00.9]}
2... d5 {[%clk 0:02:58.4]} 3. exd5 {[%clk 0:03:01.8]} 3... Qxd5 {[%clk
0:02:58.5]} 4. d4 {[%clk 0:03:01.9]} 4... Nf6 {[%clk 0:02:58.4]} 5. Nf3 {[%clk
0:03:02.1]} 5... e6 {[%clk 0:02:58.8]} 6. Na3 {[%clk 0:03:02.4]} 6... a6 {[%clk
0:02:54.3]} 7. Nc4 {[%clk 0:03:01]} 7... Nbd7 {[%clk 0:02:54.3]} 8. Be2 {[%clk
0:02:59.4]} 8... b5 {[%clk 0:02:52.8]} 9. Ne3 {[%clk 0:02:59.7]} 9... Qc6 {[%clk
0:02:29.7]} 10. a4 {[%clk 0:02:57]} 10... Bb7 {[%clk 0:02:23.8]} 11. dxc5 {[%clk
0:02:56]} 11... Bxc5 {[%clk 0:02:16.9]} 12. axb5 {[%clk 0:02:55.4]} 12... axb5
{[%clk 0:02:15.5]} 13. Rxa8+ {[%clk 0:02:55.9]} 13... Bxa8 {[%clk 0:02:15.3]}
14. Nd4 {[%clk 0:02:56.4]} 14... Bxd4 {[%clk 0:02:07.2]} 15. Qxd4 {[%clk
0:02:57.3]} 15... O-O {[%clk 0:02:00.7]} 16. O-O {[%clk 0:02:55.9]} 16... Nd5
{[%clk 0:01:19.6]} 17. Nxd5 {[%clk 0:02:53.3]} 17... exd5 {[%clk 0:01:12.4]} 18.
Bf3 {[%clk 0:02:51]} 18... Nb6 {[%clk 0:01:07.8]} 19. Rd1 {[%clk 0:02:48.7]}
19... Re8 {[%clk 0:00:58.2]} 20. h3 {[%clk 0:02:46.5]} 20... h6 {[%clk
0:00:52.8]} 21. b3 {[%clk 0:02:41.5]} 21... Qc7 {[%clk 0:00:13.5]} 22. Be3
{[%clk 0:02:37.5]} 22... Nc8 {[%clk 0:00:10.9]} 23. Bxd5 {[%clk 0:02:33.8]}
23... Bxd5 {[%clk 0:00:09.7]} 24. Qxd5 {[%clk 0:02:34.7]} 24... Ne7 {[%clk
0:00:04.5]} 25. Qxb5 {[%clk 0:02:34.3]} 25... Rc8 {[%clk 0:00:03.3]} 26. c4
{[%clk 0:02:34.2]} 26... Nf5 {[%clk 0:00:02.4]} 27. Qxf5 {[%clk 0:02:33.8]} 1-0

[Event "Early-Titled-Tuesday-Blitz-December-26-2023"]
[Site "Chess.com"]
[Date "2023.12.26"]
[Round "1"]
[White "Yurasova_Daria"]
[Black "enriquetejedor"]
[Result "1-0"]
[WhiteElo "2467"]
[BlackElo "2733"]
[TimeControl "180+1"]
[EndTime "8:04:38 PST"]
[Termination "Yurasova_Daria won by resignation"]

1. d4 {[%clk 0:02:57.2]} 1... Nf6 {[%clk 0:02:57.2]} 2. Bg5 {[%clk 0:02:48.5]}
2... d5 {[%clk 0:02:49.7]} 3. Bxf6 {[%clk 0:02:44]} 3... gxf6 {[%clk 0:02:46.5]}
4. e3 {[%clk 0:02:44.9]} 4... e6 {[%clk 0:02:43.5]} 5. g3 {[%clk 0:02:40.8]}
5... c5 {[%clk 0:02:42.2]} 6. dxc5 {[%clk 0:02:38.5]} 6... Bxc5 {[%clk 0:02:41]}
7. Bg2 {[%clk 0:02:35.7]} 7... Qb6 {[%clk 0:02:39.4]} 8. Nd2 {[%clk 0:02:32.9]}
8... Qxb2 {[%clk 0:02:37.1]} 9. Ne2 {[%clk 0:02:32]} 9... f5 {[%clk 0:02:31.9]}
10. O-O {[%clk 0:02:17.7]} 10... O-O {[%clk 0:02:29.2]} 11. Rb1 {[%clk
0:02:16.2]} 11... Qf6 {[%clk 0:02:24.4]} 12. Nb3 {[%clk 0:02:15.5]} 12... Be7
{[%clk 0:02:21.6]} 13. Nbd4 {[%clk 0:02:01.5]} 13... a6 {[%clk 0:02:19.1]} 14.
c4 {[%clk 0:01:56]} 14... dxc4 {[%clk 0:01:49.8]} 15. Bxb7 {[%clk 0:01:46.2]}
15... Ra7 {[%clk 0:01:49.3]} 16. Bf3 {[%clk 0:01:36.7]} 16... Bd7 {[%clk
0:01:34.4]} 17. Nc3 {[%clk 0:01:09]} 17... Rc8 {[%clk 0:01:29.7]} 18. Qe2 {[%clk
0:01:03.3]} 18... Nc6 {[%clk 0:01:26]} 1-0

[Event "Early-Titled-Tuesday-Blitz-December-26-2023"]
[Site "Chess.com"]
[Date "2023.12.26"]
[Round "1"]
[White "alvarorodriguezavila"]
[Black "nekotyanof"]
[Result "0-1"]
[WhiteElo "2289"]
[BlackElo "2627"]
[TimeControl "180+1"]
[EndTime "8:04:43 PST"]
[Termination "nekotyanof won by checkmate"]

1. e4 {[%clk 0:03:00.3]} 1... c5 {[%clk 0:03:00.2]} 2. Nf3 {[%clk 0:03:00.1]}
2... Nc6 {[%clk 0:03:00.4]} 3. Bb5 {[%clk 0:02:59.2]} 3... e5 {[%clk 0:02:59.8]}
4. c3 {[%clk 0:02:58.4]} 4... Bd6 {[%clk 0:02:59.9]} 5. O-O {[%clk 0:02:56.5]}
5... a6 {[%clk 0:03:00]} 6. Ba4 {[%clk 0:02:52.3]} 6... b5 {[%clk 0:02:59.8]} 7.
Bc2 {[%clk 0:02:51.5]} 7... Nf6 {[%clk 0:02:59.4]} 8. a4 {[%clk 0:02:47.4]} 8...
Bb7 {[%clk 0:02:58.4]} 9. h3 {[%clk 0:02:43.8]} 9... O-O {[%clk 0:02:57.6]} 10.
Re1 {[%clk 0:02:40.7]} 10... Bc7 {[%clk 0:02:44]} 11. d4 {[%clk 0:02:37.4]}
11... cxd4 {[%clk 0:02:43.9]} 12. cxd4 {[%clk 0:02:38]} 12... Nxd4 {[%clk
0:02:42.1]} 13. Nxd4 {[%clk 0:02:38.1]} 13... exd4 {[%clk 0:02:43]} 14. Qxd4
{[%clk 0:02:35.1]} 14... Rc8 {[%clk 0:02:40.6]} 15. Bg5 {[%clk 0:02:14.7]} 15...
h6 {[%clk 0:02:36]} 16. Bxf6 {[%clk 0:02:13]} 16... Qxf6 {[%clk 0:02:36.9]} 17.
Qxf6 {[%clk 0:02:12.2]} 17... gxf6 {[%clk 0:02:37.8]} 18. axb5 {[%clk
0:02:07.3]} 18... axb5 {[%clk 0:02:37.8]} 19. Bd3 {[%clk 0:02:07.5]} 19... Bc6
{[%clk 0:02:34.7]} 20. Nc3 {[%clk 0:02:06.3]} 20... Be5 {[%clk 0:02:34.6]} 21.
Nxb5 {[%clk 0:02:01.1]} 21... Rb8 {[%clk 0:02:34.6]} 22. Ra5 {[%clk 0:01:51.1]}
22... Bxb2 {[%clk 0:02:33.6]} 23. Re2 {[%clk 0:00:36.5]} 23... Be5 {[%clk
0:02:31.8]} 24. g3 {[%clk 0:00:31.4]} 24... Ra8 {[%clk 0:02:30.5]} 25. Rea2
{[%clk 0:00:22.8]} 25... Rxa5 {[%clk 0:02:29.7]} 26. Rxa5 {[%clk 0:00:23.7]}
26... Rb8 {[%clk 0:02:30.6]} 27. f4 {[%clk 0:00:21.2]} 27... Bb2 {[%clk
0:02:31]} 28. Nd6 {[%clk 0:00:15.9]} 28... Bd4+ {[%clk 0:02:30.8]} 29. Kg2
{[%clk 0:00:15.1]} 29... Rb2+ {[%clk 0:02:31.4]} 30. Kf3 {[%clk 0:00:14.5]}
30... h5 {[%clk 0:02:29.2]} 31. Nf5 {[%clk 0:00:13.3]} 31... Rf2# {[%clk
0:02:28.6]} 0-1

[Event "Early-Titled-Tuesday-Blitz-December-26-2023"]
[Site "Chess.com"]
[Date "2023.12.26"]
[Round "1"]
[White "SamCopeland"]
[Black "Mikhail_Golubev"]
[Result "0-1"]
[WhiteElo "2281"]
[BlackElo "2620"]
[TimeControl "180+1"]
[EndTime "8:04:51 PST"]
[Termination "Mikhail_Golubev won by resignation"]

1. e4 {[%clk 0:02:54.7]} 1... c5 {[%clk 0:02:59.8]} 2. Nf3 {[%clk 0:02:54.1]}
2... d6 {[%clk 0:03:00]} 3. d4 {[%clk 0:02:54.3]} 3... Nf6 {[%clk 0:03:00.1]} 4.
Nc3 {[%clk 0:02:52.9]} 4... cxd4 {[%clk 0:03:00.2]} 5. Nxd4 {[%clk 0:02:53.8]}
5... Nc6 {[%clk 0:03:00.1]} 6. f3 {[%clk 0:02:50.6]} 6... e5 {[%clk 0:02:58.1]}
7. Nb3 {[%clk 0:02:49.4]} 7... Be7 {[%clk 0:02:57.9]} 8. Be3 {[%clk 0:02:46.3]}
8... O-O {[%clk 0:02:57.2]} 9. Qd2 {[%clk 0:02:46.2]} 9... a5 {[%clk 0:02:57.1]}
10. a4 {[%clk 0:02:41.5]} 10... Be6 {[%clk 0:02:44.3]} 11. Nd5 {[%clk
0:02:35.7]} 11... Bxd5 {[%clk 0:02:27.1]} 12. exd5 {[%clk 0:02:33.3]} 12... Nb4
{[%clk 0:02:27.4]} 13. c4 {[%clk 0:02:18.3]} 13... b6 {[%clk 0:02:18.7]} 14. Be2
{[%clk 0:02:17]} 14... Nh5 {[%clk 0:02:12.1]} 15. O-O {[%clk 0:02:14.1]} 15...
f5 {[%clk 0:02:11.6]} 16. f4 {[%clk 0:02:02.7]} 16... Nxf4 {[%clk 0:02:06.9]}
17. Bxf4 {[%clk 0:02:01.8]} 17... exf4 {[%clk 0:02:07.4]} 18. Nd4 {[%clk
0:02:01.2]} 18... f3 {[%clk 0:01:25.5]} 19. Bxf3 {[%clk 0:01:53.3]} 19... Bg5
{[%clk 0:01:21.1]} 20. Qc3 {[%clk 0:01:33.3]} 20... Bf6 {[%clk 0:01:18.1]} 21.
Rad1 {[%clk 0:01:26.9]} 21... Bxd4+ {[%clk 0:01:10.9]} 22. Qxd4 {[%clk
0:01:22.5]} 22... Qc7 {[%clk 0:01:10.1]} 23. b3 {[%clk 0:01:19.9]} 23... Rae8
{[%clk 0:01:07.3]} 24. Rfe1 {[%clk 0:01:16.6]} 24... Nc2 {[%clk 0:01:01.5]} 25.
Rxe8 {[%clk 0:01:12.9]} 0-1

[Event "Early-Titled-Tuesday-Blitz-December-26-2023"]
[Site "Chess.com"]
[Date "2023.12.26"]
[Round "1"]
[White "BardArtem"]
[Black "chess_blitz00"]
[Result "1-0"]
[WhiteElo "2702"]
[BlackElo "2401"]
[TimeControl "180+1"]
[EndTime "8:04:52 PST"]
[Termination "BardArtem won on time"]

1. e4 {[%clk 0:03:00.9]} 1... d6 {[%clk 0:02:57.8]} 2. d4 {[%clk 0:03:00.9]}
2... e5 {[%clk 0:02:56]} 3. Nf3 {[%clk 0:02:57.6]} 3... Bg4 {[%clk 0:02:55.4]}
4. dxe5 {[%clk 0:02:49.3]} 4... Bxf3 {[%clk 0:02:55.2]} 5. Qxf3 {[%clk
0:02:50.2]} 5... dxe5 {[%clk 0:02:55.1]} 6. Bc4 {[%clk 0:02:50.9]} 6... Qf6
{[%clk 0:02:50.4]} 7. Qb3 {[%clk 0:02:49.5]} 7... Nc6 {[%clk 0:02:15.3]} 8. O-O
{[%clk 0:02:36.7]} 8... O-O-O {[%clk 0:01:47.8]} 9. Nc3 {[%clk 0:02:33.9]} 9...
Na5 {[%clk 0:01:13.9]} 10. Qa4 {[%clk 0:02:29.5]} 10... Nxc4 {[%clk 0:01:13.1]}
11. Qxc4 {[%clk 0:02:30.4]} 11... c6 {[%clk 0:00:56.8]} 12. Be3 {[%clk
0:02:26.7]} 12... Kb8 {[%clk 0:00:50.7]} 13. Rfd1 {[%clk 0:02:26.4]} 13... Rc8
{[%clk 0:00:41.2]} 14. Qa4 {[%clk 0:02:23]} 14... c5 {[%clk 0:00:33.3]} 15. Rd7
{[%clk 0:02:19.9]} 15... Ne7 {[%clk 0:00:09]} 16. Rad1 {[%clk 0:02:02.8]} 16...
Qc6 {[%clk 0:00:02]} 17. Qb3 {[%clk 0:01:58.7]} 1-0

[Event "Early-Titled-Tuesday-Blitz-December-26-2023"]
[Site "Chess.com"]
[Date "2023.12.26"]
[Round "1"]
[White "ftorodent"]
[Black "Aleksandar-Topalov"]
[Result "1-0"]
[WhiteElo "2662"]
[BlackElo "2338"]
[TimeControl "180+1"]
[EndTime "8:04:53 PST"]
[Termination "ftorodent won by resignation"]

1. d4 {[%clk 0:02:59.4]} 1... Nf6 {[%clk 0:02:57.7]} 2. c4 {[%clk 0:02:58.9]}
2... c5 {[%clk 0:02:57.2]} 3. d5 {[%clk 0:02:58.6]} 3... d6 {[%clk 0:02:57.5]}
4. Nc3 {[%clk 0:02:58]} 4... g6 {[%clk 0:02:57.4]} 5. e4 {[%clk 0:02:57.7]} 5...
Bg7 {[%clk 0:02:57.4]} 6. h3 {[%clk 0:02:55]} 6... O-O {[%clk 0:02:56.1]} 7. Nf3
{[%clk 0:02:55.1]} 7... e6 {[%clk 0:02:55.2]} 8. Bd3 {[%clk 0:02:55.2]} 8...
exd5 {[%clk 0:02:51.6]} 9. exd5 {[%clk 0:02:55.1]} 9... Re8+ {[%clk 0:02:49.4]}
10. Be3 {[%clk 0:02:55.2]} 10... Nfd7 {[%clk 0:02:49.4]} 11. O-O {[%clk
0:02:51.3]} 11... Ne5 {[%clk 0:02:48.2]} 12. Nxe5 {[%clk 0:02:48.6]} 12... Bxe5
{[%clk 0:02:48]} 13. Qd2 {[%clk 0:02:47.7]} 13... f5 {[%clk 0:02:39.5]} 14. Bg5
{[%clk 0:02:41.8]} 14... Bf6 {[%clk 0:02:08.1]} 15. Bxf6 {[%clk 0:02:41.1]}
15... Qxf6 {[%clk 0:02:08.1]} 16. Rae1 {[%clk 0:02:41.4]} 16... Rxe1 {[%clk
0:02:05.8]} 17. Rxe1 {[%clk 0:02:41.3]} 17... Bd7 {[%clk 0:02:05.9]} 18. Qf4
{[%clk 0:02:32.9]} 18... Kf7 {[%clk 0:01:50]} 19. Nb5 {[%clk 0:02:08.5]} 19...
Bxb5 {[%clk 0:01:49.2]} 20. cxb5 {[%clk 0:02:05.9]} 20... Nd7 {[%clk 0:01:49.3]}
21. Re6 {[%clk 0:02:05.8]} 21... Qd4 {[%clk 0:01:39.5]} 22. Qxd6 {[%clk
0:01:50.5]} 22... Nf8 {[%clk 0:01:38.6]} 23. Re7+ {[%clk 0:01:30.4]} 23... Kg8
{[%clk 0:01:38.6]} 24. Bf1 {[%clk 0:01:30.2]} 24... Qxb2 {[%clk 0:01:09.6]} 25.
Qxc5 {[%clk 0:01:25.8]} 25... Qxa2 {[%clk 0:01:05.7]} 26. d6 {[%clk 0:01:25.6]}
26... Qd2 {[%clk 0:01:04]} 27. Qe5 {[%clk 0:01:22.1]} 1-0

[Event "Early-Titled-Tuesday-Blitz-December-26-2023"]
[Site "Chess.com"]
[Date "2023.12.26"]
[Round "1"]
[White "Nechitaylo_Nikita"]
[Black "viktorskliarov"]
[Result "0-1"]
[WhiteElo "2315"]
[BlackElo "2645"]
[TimeControl "180+1"]
[EndTime "8:05:00 PST"]
[Termination "viktorskliarov won by resignation"]

1. d4 {[%clk 0:03:00.9]} 1... Nf6 {[%clk 0:02:57.8]} 2. c4 {[%clk 0:03:01.2]}
2... e6 {[%clk 0:02:57.9]} 3. Nc3 {[%clk 0:02:59.9]} 3... Bb4 {[%clk 0:02:57.6]}
4. e3 {[%clk 0:02:59.4]} 4... b6 {[%clk 0:02:57.1]} 5. Ne2 {[%clk 0:02:56.6]}
5... Ne4 {[%clk 0:02:57]} 6. Qc2 {[%clk 0:02:40.3]} 6... Bb7 {[%clk 0:02:54.8]}
7. a3 {[%clk 0:02:32.2]} 7... Bxc3+ {[%clk 0:02:54.3]} 8. Nxc3 {[%clk
0:02:33.1]} 8... Nxc3 {[%clk 0:02:54.2]} 9. Qxc3 {[%clk 0:02:34]} 9... O-O
{[%clk 0:02:54]} 10. b4 {[%clk 0:02:18.1]} 10... d6 {[%clk 0:02:53.6]} 11. Bb2
{[%clk 0:02:18.1]} 11... a5 {[%clk 0:02:49.8]} 12. d5 {[%clk 0:02:13.5]} 12...
Qg5 {[%clk 0:02:48.1]} 13. h4 {[%clk 0:01:34.3]} 13... axb4 {[%clk 0:02:47.7]}
14. axb4 {[%clk 0:01:21.9]} 14... Rxa1+ {[%clk 0:02:48.6]} 15. Bxa1 {[%clk
0:01:22.1]} 15... Qg6 {[%clk 0:02:48.3]} 16. Bd3 {[%clk 0:00:30.4]} 16... Qxg2
{[%clk 0:02:46.3]} 17. Be4 {[%clk 0:00:29.2]} 17... Qg4 {[%clk 0:02:45.5]} 18.
Qd3 {[%clk 0:00:11.3]} 18... f5 {[%clk 0:02:27.8]} 19. dxe6 {[%clk 0:00:01.4]}
19... Bxe4 {[%clk 0:02:08.1]} 20. Qd4 {[%clk 0:00:01.5]} 20... Bxh1 {[%clk
0:02:06.7]} 21. e7 {[%clk 0:00:02.4]} 21... Re8 {[%clk 0:02:00.6]} 22. f4 {[%clk
0:00:03]} 22... Rxe7 {[%clk 0:01:57]} 0-1

[Event "Early-Titled-Tuesday-Blitz-December-26-2023"]
[Site "Chess.com"]
[Date "2023.12.26"]
[Round "1"]
[White "Pastore1978"]
[Black "Macron20hTF1"]
[Result "0-1"]
[WhiteElo "2213"]
[BlackElo "2596"]
[TimeControl "180+1"]
[EndTime "8:05:16 PST"]
[Termination "Macron20hTF1 won by checkmate"]

1. e4 {[%clk 0:03:00.9]} 1... c6 {[%clk 0:02:59]} 2. d4 {[%clk 0:03:00.4]} 2...
d5 {[%clk 0:02:59.9]} 3. exd5 {[%clk 0:03:01.2]} 3... cxd5 {[%clk 0:02:58.3]} 4.
Bd3 {[%clk 0:03:01.6]} 4... Nf6 {[%clk 0:02:57.8]} 5. c3 {[%clk 0:03:01.4]} 5...
Bg4 {[%clk 0:02:57.1]} 6. Qb3 {[%clk 0:03:00.5]} 6... Qc7 {[%clk 0:02:57]} 7. h3
{[%clk 0:02:48.5]} 7... Bh5 {[%clk 0:02:56.7]} 8. g4 {[%clk 0:02:47.4]} 8... Bg6
{[%clk 0:02:56.7]} 9. g5 {[%clk 0:02:47.8]} 9... Bxd3 {[%clk 0:02:47.4]} 10.
gxf6 {[%clk 0:02:43.9]} 10... Be4 {[%clk 0:02:38.7]} 11. f3 {[%clk 0:02:20.7]}
11... Qg3+ {[%clk 0:02:38.2]} 12. Kd2 {[%clk 0:01:37.5]} 12... Qf4+ {[%clk
0:02:38.4]} 13. Ke2 {[%clk 0:01:28.1]} 13... Qxc1 {[%clk 0:02:25.6]} 14. fxe4
{[%clk 0:01:24.6]} 14... Nd7 {[%clk 0:01:50.6]} 15. exd5 {[%clk 0:01:07.3]}
15... gxf6 {[%clk 0:01:45.1]} 16. Kf2 {[%clk 0:00:54.6]} 16... Rg8 {[%clk
0:01:41.6]} 17. a4 {[%clk 0:00:36.6]} 17... Bh6 {[%clk 0:01:40.1]} 18. Qa2
{[%clk 0:00:17.4]} 18... Rg5 {[%clk 0:01:29.8]} 19. Na3 {[%clk 0:00:14.2]} 19...
Rf5+ {[%clk 0:01:30.3]} 20. Kg2 {[%clk 0:00:09.4]} 20... Qg5+ {[%clk 0:01:30.3]}
21. Kh2 {[%clk 0:00:08.8]} 21... Rf2# {[%clk 0:01:31.2]} 0-1

[Event "Early-Titled-Tuesday-Blitz-December-26-2023"]
[Site "Chess.com"]
[Date "2023.12.26"]
[Round "1"]
[White "Siniauski"]
[Black "matagordo"]
[Result "1-0"]
[WhiteElo "2597"]
[BlackElo "2223"]
[TimeControl "180+1"]
[EndTime "8:05:24 PST"]
[Termination "Siniauski won by resignation"]

1. e4 {[%clk 0:02:59.3]} 1... e6 {[%clk 0:02:53.2]} 2. d4 {[%clk 0:02:59.4]}
2... d5 {[%clk 0:02:51.7]} 3. Nc3 {[%clk 0:03:00]} 3... Nf6 {[%clk 0:02:49.7]}
4. Bg5 {[%clk 0:02:59.6]} 4... Be7 {[%clk 0:02:49.5]} 5. e5 {[%clk 0:02:59.6]}
5... Nfd7 {[%clk 0:02:49.9]} 6. Bxe7 {[%clk 0:03:00.2]} 6... Qxe7 {[%clk
0:02:50.8]} 7. f4 {[%clk 0:03:00.9]} 7... a6 {[%clk 0:02:50.5]} 8. Nf3 {[%clk
0:03:01.4]} 8... c5 {[%clk 0:02:51.1]} 9. dxc5 {[%clk 0:03:01.5]} 9... Nc6
{[%clk 0:02:50.5]} 10. Bd3 {[%clk 0:03:01.9]} 10... Nxc5 {[%clk 0:02:51]} 11. a3
{[%clk 0:03:01.3]} 11... b5 {[%clk 0:02:50.8]} 12. Ne2 {[%clk 0:03:01.3]} 12...
Rb8 {[%clk 0:02:49]} 13. O-O {[%clk 0:03:00.5]} 13... a5 {[%clk 0:02:49.2]} 14.
Ned4 {[%clk 0:02:58.3]} 14... Nxd4 {[%clk 0:02:45.8]} 15. Nxd4 {[%clk
0:02:59.2]} 15... g6 {[%clk 0:02:46]} 16. Nc6 {[%clk 0:02:44.9]} 16... Qb7
{[%clk 0:02:34.3]} 17. Nxb8 {[%clk 0:02:45.1]} 17... Qxb8 {[%clk 0:02:35.2]} 18.
b4 {[%clk 0:02:45.5]} 18... Na4 {[%clk 0:02:23.8]} 19. Qd2 {[%clk 0:02:32.4]}
19... O-O {[%clk 0:02:04.3]} 20. Rab1 {[%clk 0:02:31.3]} 20... Qa7+ {[%clk
0:02:01.4]} 21. Kh1 {[%clk 0:02:31]} 21... axb4 {[%clk 0:01:55.5]} 22. Qxb4
{[%clk 0:02:26.7]} 22... Bd7 {[%clk 0:01:52.1]} 23. Bxb5 {[%clk 0:02:19]} 23...
Bxb5 {[%clk 0:01:51.9]} 24. Qxb5 {[%clk 0:02:17]} 24... Nc3 {[%clk 0:01:52.5]}
25. Qb6 {[%clk 0:02:06.5]} 25... Qxa3 {[%clk 0:01:48.7]} 26. Rb3 {[%clk
0:02:06.7]} 26... Na4 {[%clk 0:01:44.1]} 27. Qd4 {[%clk 0:01:28]} 27... Qa2
{[%clk 0:01:08.4]} 28. Ra1 {[%clk 0:01:26.7]} 28... Qxc2 {[%clk 0:01:03.1]} 29.
Qxa4 {[%clk 0:01:25.1]} 29... Rc8 {[%clk 0:00:55.1]} 30. Rb8 {[%clk 0:01:12.7]}
1-0